fUST/lending_fUST_20240110
["ID","MTS","AMOUNT","RATE_DAILY","PERIOD"]
[311083924,1704900642644,-978.3,0.00030136,2]
[311083925,1704900642653,-580.81,0.00030136,2]
[311083926,1704900642662,-500.0,0.00030136,2]
[311083928,1704900642671,-5000.0,0.00030137,2]
[311083930,1704900642680,-3180.8731799,0.00030137,2]
[311083931,1704900642689,-613.48175001,0.00030409,4]
[311083932,1704900642697,-445.55507305,0.00030409,4]
[311083933,1704900642706,-172.70262266,0.00030409,4]
[311083934,1704900642714,-500.0,0.00030409,4]
[311083935,1704900642723,-500.0,0.0003041,2]
[311083936,1704900642731,-500.3,0.0003041,2]
[311083937,1704900642740,-677.04,0.0003041,2]
[311083938,1704900642751,-847.2,0.0003041,2]
[311083939,1704900642760,-500.0,0.0003041,2]
[311083941,1704900642769,-4850.81,0.0003041,2]
[311083943,1704900642778,-638.47,0.0003041,2]
[311083945,1704900642787,-500.0,0.0003041,2]
[311083946,1704900642797,-500.0,0.0003041,2]
[311083948,1704900642806,-2263.69,0.0003041,2]
[311083950,1704900642816,-500.0,0.0003041,2]
[311083952,1704900642826,-978.3,0.0003041,2]
[311083954,1704900642836,-580.81,0.0003041,2]
[311083956,1704900642846,-500.0,0.0003041,2]
[311083958,1704900642856,-150.89437394,0.00030658,7]
[311083960,1704900642865,-608.2500686,0.00030684,2]
[311083962,1704900642874,-500.3,0.00030684,2]
[311083964,1704900642883,-677.04,0.00030684,2]
[311083966,1704900642893,-847.2,0.00030684,2]
[311083968,1704900642902,-500.0,0.00030684,2]
[311083970,1704900642911,-4850.81,0.00030684,2]
[311083972,1704900642920,-638.47,0.00030684,2]
[311083974,1704900642930,-500.0,0.00030684,2]
[311083976,1704900642940,-500.0,0.00030684,2]
[311083978,1704900642949,-2263.69,0.00030684,2]
[311083980,1704900642958,-500.0,0.00030684,2]
[311083982,1704900642967,-978.3,0.00030684,2]
[311083984,1704900642976,-580.81,0.00030684,2]
[311083986,1704900642986,-500.0,0.00030684,2]
[311083988,1704900643000,-312.21389727,0.00030887,2]
[311083990,1704900643010,-5739.78888169,0.00030887,2]
[311083992,1704900643020,-662.35508469,0.00030887,2]
[311083994,1704900643030,-500.3,0.00030958,2]
[311083996,1704900643039,-677.04,0.00030958,2]
[311083998,1704900643047,-847.2,0.00030958,2]
[311084000,1704900643057,-500.0,0.00030958,2]
[311084002,1704900643066,-4850.81,0.00030958,2]
[311084004,1704900643075,-638.47,0.00030958,2]
[311084006,1704900643085,-500.0,0.00030958,2]
[311084008,1704900643095,-277.98370924,0.00030958,2]
[311084010,1704900643103,-2263.69,0.00030958,2]
[311084012,1704900643112,-500.0,0.00030958,2]
[311084013,1704900643121,-978.3,0.00030958,2]
[311084015,1704900643130,-580.81,0.00030958,2]
[311084017,1704900643139,-500.0,0.00030958,2]
[311084019,1704900643148,-20585.91157609,0.00031,4]
[311084021,1704900643157,-500.3,0.00031232,2]
[311084023,1704900643167,-677.04,0.00031232,2]
[311084025,1704900643176,-847.2,0.00031232,2]
[311084027,1704900643185,-306.65597821,0.00031232,2]
[311084029,1704900643194,-4850.81,0.00031232,2]
[311084031,1704900643203,-638.47,0.00031232,2]
[311084033,1704900643212,-500.0,0.00031232,2]
[311084035,1704900643221,-2263.69,0.00031232,2]
[311084037,1704900643231,-571.18,0.00031232,2]
[311084039,1704900643239,-978.3,0.00031232,2]
[311084041,1704900643252,-580.81,0.00031232,2]
[311084043,1704900643261,-500.0,0.00031232,2]
[311084045,1704900643271,-150.89437394,0.00031283,4]
[311084047,1704900643280,-999.30048966,0.00031417,2]
[311084049,1704900643289,-5000.0,0.00031497,7]
[311084051,1704900643300,-500.3,0.00031506,2]
[311084053,1704900643309,-677.04,0.00031506,2]
[311084055,1704900643318,-847.2,0.00031506,2]
[311084057,1704900643327,-4850.81,0.00031506,2]
[311084059,1704900643337,-638.47,0.00031506,2]
[311084061,1704900643346,-500.0,0.00031506,2]
[311084063,1704900643355,-2263.69,0.00031506,2]
[311084064,1704900643365,-978.3,0.00031506,2]
[311084066,1704900643375,-580.81,0.00031506,2]
[311084068,1704900643384,-500.0,0.00031506,2]
[311084070,1704900643396,-5000.0,0.00031508,7]
[311084072,1704900643405,-153.0,0.00031607,2]
[311084074,1704900643413,-500.3,0.0003178,2]
[311084076,1704900643422,-677.04,0.0003178,2]
[311084078,1704900643431,-847.2,0.0003178,2]
[311084080,1704900643441,-4850.81,0.0003178,2]
[311084082,1704900643450,-638.47,0.0003178,2]
[311084084,1704900643459,-500.0,0.0003178,2]
[311084086,1704900643468,-2263.69,0.0003178,2]
[311084088,1704900643477,-978.3,0.0003178,2]
[311084090,1704900643488,-580.81,0.0003178,2]
[311084092,1704900643498,-500.0,0.0003178,2]
[311084094,1704900643507,-150.89437394,0.00031922,2]
[311084096,1704900643516,-38363.65059237,0.00031954,3]
[311084098,1704900643526,-623.3665165,0.00031995,2]
[311084100,1704900643535,-31141.67698309,0.00031999,2]
[311084102,1704900643551,-271095.32301691,0.00031999,2]
[311084104,1704900643560,-2134.03260025,0.00032,4]
[311084106,1704900643569,-4168.01043791,0.00032,10]
[311084108,1704900643579,-50000.0,0.00032,2]
[311084110,1704900643588,-787.43,0.00032052,2]
[311084112,1704900643597,-787.43,0.00032052,2]
[311084114,1704900643607,-500.3,0.00032054,2]
[311084116,1704900643616,-677.04,0.00032054,2]
[311084119,1704900643626,-847.2,0.00032054,2]
[311084120,1704900643635,-4850.81,0.00032054,2]
[311084122,1704900643645,-638.47,0.00032054,2]
[311084124,1704900643653,-200.86156623,0.00032054,2]
[311084126,1704900643663,-2263.69,0.00032054,2]
[311084128,1704900643672,-978.3,0.00032054,2]
[311084130,1704900643682,-580.81,0.00032054,2]
[311084132,1704900643691,-500.0,0.00032054,2]
[311084134,1704900643701,-3000.0,0.000322,7]
[311084136,1704900643710,-5000.0,0.00032318,2]
[311084138,1704900643718,-5000.0,0.00032319,2]
[311084140,1704900643727,-5000.0,0.00032321,2]
[311084142,1704900643736,-1168.86,0.00032322,2]
[311084144,1704900643746,-5000.0,0.00032324,2]
[311084146,1704900643755,-1135.23536243,0.00032325,2]
[311084149,1704900643775,-1254.96,0.00030136,2]
[311084151,1704900643785,-3864.76463757,0.00032325,2]
[311084153,1704900643794,-5000.0,0.00032325,2]
[311084155,1704900643803,-5000.0,0.00032326,2]
[311084157,1704900643812,-677.04,0.00032328,2]
[311084159,1704900643822,-500.3,0.00032328,2]
[311084161,1704900643832,-847.2,0.00032328,2]
[311084163,1704900643841,-1360.17143928,0.00032328,2]
[311084387,1704900645711,-500.30641269,0.00027397,2]
[311084390,1704900645720,-1537.44,0.00027661,3]
[311084392,1704900645730,-500.0,0.0002767,2]
[311084394,1704900645739,-1254.96,0.0003041,2]
[311084397,1704900645750,-1254.96,0.00030684,2]
[311084399,1704900645759,-1254.96,0.00030958,2]
[311084403,1704900645768,-1254.96,0.00031232,2]
[311084405,1704900645777,-1254.96,0.00031506,2]
[311084408,1704900645786,-1254.96,0.0003178,2]
[311084411,1704900645795,-1254.96,0.00032054,2]
[311084415,1704900645804,-3490.63856072,0.00032328,2]
[311084421,1704900645814,-638.47,0.00032328,2]
[311084423,1704900645823,-2263.69,0.00032328,2]
[311084429,1704900645832,-978.3,0.00032328,2]
[311084434,1704900645841,-580.81,0.00032328,2]
[311084437,1704900645850,-500.0,0.00032328,2]
[311084441,1704900645859,-3304.18199165,0.00032331,2]
[311084446,1704900645871,-1695.77800835,0.00032331,2]
[311084449,1704900645880,-961.92,0.00032332,2]
[311084453,1704900645889,-3948.96852724,0.00032335,2]
[311084458,1704900645904,-1254.96,0.00032328,2]
[311084462,1704900645913,-1051.03147276,0.00032335,2]
[311084465,1704900645921,-90.76663993,0.0003234,4]
[311084469,1704900645934,-2342.58720012,0.0003234,4]
[311084505,1704900646102,-500.0,0.00027397,2]
[311084507,1704900646111,-1173.00302824,0.0003234,4]
[311084509,1704900646122,-4106.82390636,0.0003234,4]
[311084513,1704900646133,-2979.21654671,0.0003234,4]
[311084527,1704900646195,-500.0,0.00027397,2]
[311084530,1704900646204,-802.00243324,0.0003234,4]
[311087304,1704901651099,-154.87609912,0.00022591,4]
[311087305,1704901651283,-241.487898,0.00022592,2]
[311087306,1704901651305,-213.6448584,0.00022592,2]
[311087307,1704901651327,-166.666666,0.00023021,2]
[311087308,1704901651354,-7943.71182072,0.00023509,2]
[311087309,1704901651376,-2927.32783457,0.0002351,2]
[311087310,1704901651397,-19828.39990193,0.0002351,2]
[311087311,1704901651418,-17012.6069777,0.00023516,2]
[311087312,1704901651439,-166.666666,0.00023648,2]
[311087313,1704901651459,-192.86828256,0.00023668,2]
[311087314,1704901651480,-192.86828256,0.00023668,2]
[311087315,1704901651501,-192.86828256,0.00023668,2]
[311087316,1704901651522,-192.86828256,0.00023668,2]
[311087317,1704901651542,-192.86828256,0.00023668,2]
[311087318,1704901651562,-192.86828256,0.00023668,2]
[311087319,1704901651585,-192.86828256,0.00023668,2]
[311087320,1704901651605,-167.600317,0.00023841,2]
[311087321,1704901651628,-166.666666,0.00024276,2]
[311087322,1704901651648,-2293.16748545,0.00024655,2]
[311087323,1704901651669,-976.0012481,0.00024656,2]
[311087324,1704901651690,-166.666666,0.00024904,2]
[311087325,1704901651710,-4711.08145103,0.00025,2]
[311087326,1704901651730,-201.391144,0.00025031,2]
[311087327,1704901651752,-3000.0,0.00025294,2]
[311087328,1704901651771,-3935.83596684,0.00025295,2]
[311087329,1704901651791,-166.666666,0.00025531,2]
[311087330,1704901651812,-525.91402641,0.00026,2]
[311087331,1704901651834,-166.666666,0.00026159,2]
[311087332,1704901651853,-3476.43711676,0.00026847,2]
[311087333,1704901651874,-1609.38,0.00027375,3]
[311087334,1704901651896,-733.25771754,0.00027384,2]
[311087335,1704901651917,-843.96,0.00027385,3]
[311087336,1704901651937,-1609.38,0.00027387,3]
[311087337,1704901651957,-947.43868379,0.00027395,2]
[311087338,1704901651981,-263.71867682,0.00027395,2]
[311087339,1704901652002,-155.12704871,0.00027395,2]
[311087340,1704901652022,-177.93668486,0.00027396,2]
[311087341,1704901652047,-10500.0358078,0.00027396,2]
[311087342,1704901652068,-500.0,0.00027397,2]
[311087343,1704901652089,-500.0,0.00027397,2]
[311087344,1704901652109,-500.0,0.00027397,2]
[311087345,1704901652131,-500.0,0.00027397,2]
[311087346,1704901652152,-500.0,0.00027397,2]
[311087347,1704901652171,-500.0,0.00027397,2]
[311087348,1704901652191,-500.0,0.00027397,2]
[311087349,1704901652211,-500.0,0.00027397,2]
[311087350,1704901652231,-500.0,0.00027397,2]
[311087351,1704901652250,-500.0,0.00027397,2]
[311087352,1704901652270,-500.0,0.00027397,2]
[311087353,1704901652290,-500.0,0.00027397,2]
[311087354,1704901652311,-500.0,0.00027397,2]
[311087355,1704901652338,-500.0,0.00027397,2]
[311087356,1704901652358,-500.0,0.00027397,2]
[311087357,1704901652378,-502.97512192,0.00027397,2]
[311087358,1704901652397,-500.0,0.00027397,2]
[311087359,1704901652419,-540.19242962,0.00027397,2]
[311087360,1704901652439,-500.0,0.00027397,2]
[311087361,1704901652458,-500.0,0.00027397,2]
[311087362,1704901652478,-500.0,0.00027397,2]
[311087363,1704901652498,-500.0,0.00027397,2]
[311087364,1704901652518,-503.09208755,0.00027397,2]
[311087365,1704901652538,-500.0,0.00027397,2]
[311087366,1704901652558,-513.26199714,0.00027397,2]
[311087367,1704901652579,-500.0,0.00027397,2]
[311087368,1704901652601,-506.73928784,0.00027397,2]
[311087369,1704901652621,-503.05323719,0.00027397,2]
[311087370,1704901652641,-500.0,0.00027397,2]
[311087371,1704901652661,-500.0,0.00027397,2]
[311087372,1704901652681,-500.0,0.00027397,2]
[311087373,1704901652701,-537.22173204,0.00027397,2]
[311087374,1704901652721,-500.0,0.00027397,2]
[311087375,1704901652742,-500.0,0.00027397,2]
[311087376,1704901652763,-504.30430713,0.00027397,2]
[311087377,1704901652783,-500.0,0.00027397,2]
[311087378,1704901652803,-500.0,0.00027397,2]
[311087379,1704901652824,-500.0,0.00027397,2]
[311087380,1704901652846,-215.0521032,0.00027397,2]
[311087381,1704901652866,-500.0,0.00027397,2]
[311087382,1704901652887,-500.0,0.00027397,2]
[311087383,1704901652908,-500.0,0.00027397,2]
[311087384,1704901652931,-500.0,0.00027397,2]
[311087385,1704901652952,-500.0,0.00027397,2]
[311087386,1704901652973,-500.0,0.00027397,2]
[311087387,1704901652994,-500.0,0.00027397,2]
[311087388,1704901653017,-500.0,0.00027397,2]
[311087389,1704901653037,-508.95269542,0.00027397,2]
[311087390,1704901653059,-500.0,0.00027397,2]
[311087391,1704901653079,-503.41865706,0.00027397,2]
[311087392,1704901653100,-500.0,0.00027397,2]
[311087393,1704901653120,-500.0,0.00027397,2]
[311087394,1704901653141,-500.0,0.00027397,2]
[311087395,1704901653161,-352.90896704,0.00027397,2]
[311087396,1704901653182,-500.0,0.00027397,2]
[311087397,1704901653202,-534.63983472,0.00027397,2]
[311087398,1704901653223,-500.0,0.00027397,2]
[311087399,1704901653244,-500.0,0.00027397,2]
[311087400,1704901653265,-500.0,0.00027397,2]
[311087401,1704901653285,-503.57074347,0.00027397,2]
[311087402,1704901653306,-500.0,0.00027397,2]
[311087403,1704901653327,-500.0,0.00027397,2]
[311087404,1704901653350,-500.0,0.00027397,2]
[311087405,1704901653369,-494.86882139,0.00027397,14]
[311087406,1704901653390,-1000.0,0.00027397,2]
[311087407,1704901653411,-500.0,0.00027397,2]
[311087408,1704901653432,-500.0,0.00027397,2]
[311087409,1704901653452,-500.0,0.00027397,2]
[311087410,1704901653474,-500.0,0.00027397,2]
[311087411,1704901653497,-500.0,0.00027397,2]
[311087412,1704901653521,-500.0,0.00027397,2]
[311087413,1704901653541,-519.03132997,0.00027397,2]
[311087414,1704901653562,-500.0,0.00027397,2]
[311087415,1704901653584,-500.0,0.00027397,2]
[311087416,1704901653604,-465.54886148,0.00027397,2]
[311087417,1704901653626,-155.0,0.00027397,2]
[311087418,1704901653647,-500.0,0.00027397,2]
[311087419,1704901653669,-500.0,0.00027397,2]
[311087420,1704901653690,-500.0,0.00027397,2]
[311087421,1704901653711,-504.9808936,0.00027397,2]
[311087422,1704901653732,-509.12236943,0.00027397,2]
[311087423,1704901653754,-500.0,0.00027397,2]
[311087424,1704901653775,-564.33525738,0.00027397,2]
[311087425,1704901653796,-500.0,0.00027397,2]
[311087426,1704901653817,-500.92873917,0.00027397,2]
[311087427,1704901653841,-500.0,0.00027397,2]
[311087428,1704901653862,-500.0,0.00027397,2]
[311087429,1704901653883,-500.0,0.00027397,2]
[311087430,1704901653908,-500.0,0.00027397,2]
[311087431,1704901653930,-500.0,0.00027397,2]
[311087432,1704901653952,-500.0,0.00027397,2]
[311087433,1704901653974,-546.55649512,0.00027397,2]
[311087434,1704901653996,-68.36805935,0.00027397,2]
[311087474,1704901834498,-525.91402641,0.00026202,2]
[311087475,1704901834510,-154.87609912,0.00026202,4]
[311087476,1704901834521,-201.391144,0.00026203,2]
[311087477,1704901834532,-1575.13684693,0.00026574,2]
[311087510,1704901839718,-696.35157669,0.00026574,2]
[311087513,1704901839734,-17556.91147831,0.00026574,2]
[311087515,1704901839743,-4711.08145103,0.00026574,2]
[311087517,1704901839752,-8743.9820779,0.00026575,2]
[311087519,1704901839761,-733.25771754,0.00027386,2]
[311087521,1704901839770,-1727.01,0.00027387,3]
[311087523,1704901839780,-1904.34,0.00027387,3]
[311087525,1704901839789,-1586.95,0.00027387,3]
[311087527,1704901839798,-2245.66927253,0.00027395,2]
[311087529,1704901839808,-7651.98137492,0.00027395,2]
[311087531,1704901839817,-500.0,0.00027396,2]
[311087533,1704901839826,-500.0,0.00027396,2]
[311087535,1704901839836,-195.47561771,0.00027396,2]
[311087537,1704901839845,-616.08476219,0.00027396,2]
[311087538,1704901839854,-208.70435716,0.00027396,2]
[311087540,1704901839864,-500.0,0.00027396,2]
[311087541,1704901839874,-500.0,0.00027396,2]
[311087543,1704901839883,-500.0,0.00027396,2]
[311087545,1704901839893,-500.0,0.00027396,2]
[311087547,1704901839902,-500.0,0.00027396,2]
[311087549,1704901839912,-500.0,0.00027396,2]
[311087551,1704901839922,-226.78467566,0.00027396,2]
[311087553,1704901839932,-500.0,0.00027396,2]
[311087555,1704901839941,-500.0,0.00027396,2]
[311087558,1704901839951,-500.0,0.00027396,2]
[311087561,1704901839961,-500.0,0.00027396,2]
[311087563,1704901839970,-500.0,0.00027396,2]
[311087565,1704901839984,-500.0,0.00027396,2]
[311087567,1704901839992,-500.0,0.00027396,2]
[311087569,1704901840002,-282.23163518,0.00027396,2]
[311087571,1704901840011,-431.63194065,0.00027397,2]
[311087573,1704901840021,-500.0,0.00027397,2]
[311087575,1704901840030,-1000.0,0.00027397,5]
[311087577,1704901840040,-500.0,0.00027397,2]
[311087579,1704901840049,-500.0,0.00027397,2]
[311087580,1704901840058,-500.0,0.00027397,2]
[311087582,1704901840068,-500.0,0.00027397,2]
[311087584,1704901840077,-500.0,0.00027397,2]
[311087586,1704901840086,-500.0,0.00027397,2]
[311087588,1704901840096,-524.89574781,0.00027397,2]
[311087590,1704901840105,-500.0,0.00027397,2]
[311087592,1704901840114,-500.0,0.00027397,2]
[311087594,1704901840123,-500.0,0.00027397,2]
[311087596,1704901840134,-500.0,0.00027397,2]
[311087598,1704901840143,-500.0,0.00027397,2]
[311087600,1704901840153,-500.0,0.00027397,2]
[311087602,1704901840162,-500.0,0.00027397,2]
[311087604,1704901840171,-602.12179745,0.00027397,2]
[311087605,1704901840180,-500.0,0.00027397,2]
[311087607,1704901840189,-500.0,0.00027397,2]
[311087609,1704901840198,-501.46967249,0.00027397,2]
[311087611,1704901840208,-500.0,0.00027397,2]
[311087613,1704901840217,-501.60375425,0.00027397,2]
[311087615,1704901840226,-275.97361976,0.00027397,2]
[311087616,1704901840236,-500.0,0.00027397,2]
[311087618,1704901840245,-502.47780367,0.00027397,2]
[311087620,1704901840255,-515.0953029,0.00027397,2]
[311087622,1704901840265,-500.0,0.00027397,2]
[311087624,1704901840274,-513.25278218,0.00027397,2]
[311087626,1704901840283,-500.0,0.00027397,2]
[311087628,1704901840293,-500.0,0.00027397,2]
[311087630,1704901840302,-500.0,0.00027397,2]
[311087632,1704901840311,-501.33305653,0.00027397,2]
[311087634,1704901840320,-500.0,0.00027397,2]
[311087636,1704901840329,-500.0,0.00027397,2]
[311087638,1704901840338,-500.0,0.00027397,2]
[311087640,1704901840347,-500.0,0.00027397,2]
[311087642,1704901840357,-500.0,0.00027397,2]
[311087643,1704901840365,-500.0,0.00027397,2]
[311087644,1704901840375,-500.0,0.00027397,2]
[311087645,1704901840384,-500.0,0.00027397,2]
[311087646,1704901840393,-500.0,0.00027397,2]
[311087647,1704901840402,-591.38,0.00027397,2]
[311087648,1704901840412,-500.0,0.00027397,2]
[311087650,1704901840421,-500.0,0.00027397,2]
[311087651,1704901840430,-541.74440105,0.00027397,2]
[311087652,1704901840439,-500.0,0.00027397,2]
[311087653,1704901840448,-500.0,0.00027397,2]
[311087654,1704901840457,-500.0,0.00027397,2]
[311087655,1704901840467,-500.0,0.00027397,2]
[311087656,1704901840478,-534.14,0.00027397,2]
[311087657,1704901840487,-500.0,0.00027397,2]
[311087658,1704901840496,-500.0,0.00027397,2]
[311087659,1704901840505,-598.24802421,0.00027397,2]
[311087660,1704901840514,-500.0,0.00027397,2]
[311087661,1704901840523,-500.0,0.00027397,2]
[311087662,1704901840532,-500.0,0.00027397,2]
[311087663,1704901840541,-500.0,0.00027397,2]
[311087664,1704901840550,-500.0,0.00027397,2]
[311087665,1704901840560,-500.0,0.00027397,2]
[311087666,1704901840569,-500.0,0.00027397,2]
[311087667,1704901840578,-500.0,0.00027397,2]
[311087668,1704901840588,-500.0,0.00027397,2]
[311087669,1704901840597,-896.77,0.00027397,2]
[311087670,1704901840606,-500.0,0.00027397,2]
[311087671,1704901840615,-500.0,0.00027397,2]
[311087672,1704901840624,-500.0,0.00027397,2]
[311087673,1704901840633,-500.0,0.00027397,2]
[311087674,1704901840642,-500.0,0.00027397,2]
[311087675,1704901840651,-973.9,0.00027397,2]
[311087676,1704901840661,-500.0,0.00027397,2]
[311087677,1704901840670,-500.0,0.00027397,2]
[311087678,1704901840678,-500.0,0.00027397,2]
[311087679,1704901840688,-619.44144137,0.00027397,2]
[311087680,1704901840697,-300.0,0.00027397,2]
[311087681,1704901840706,-500.0,0.00027397,2]
[311087682,1704901840715,-500.0,0.00027397,2]
[311087683,1704901840724,-500.0,0.00027397,2]
[311087684,1704901840735,-506.72737826,0.00027397,2]
[311087686,1704901840744,-500.0,0.00027397,2]
[311087688,1704901840754,-500.0,0.00027397,2]
[311087690,1704901840763,-200.0,0.00027397,2]
[311087692,1704901840772,-7685.33,0.00027397,2]
[311087694,1704901840782,-500.0,0.00027397,2]
[311087696,1704901840791,-763.40324942,0.00027397,2]
[311087698,1704901840800,-503.57217146,0.00027397,2]
[311087700,1704901840810,-2079.63666476,0.00027397,2]
[311087702,1704901840819,-501.3809648,0.00027397,2]
[311087704,1704901840828,-3313.2630203,0.00027397,2]
[311087705,1704901840837,-501.60891421,0.00027397,2]
[311087707,1704901840847,-283496.12713746,0.00027397,7]
[311087709,1704901840857,-500.0,0.00027397,2]
[311087711,1704901840866,-501.81180643,0.00027397,2]
[311087712,1704901840875,-371.23127172,0.00027397,2]
[311087714,1704901840885,-500.0,0.00027397,2]
[311087716,1704901840895,-500.0,0.00027397,2]
[311087717,1704901840905,-500.0,0.00027397,2]
[311087719,1704901840914,-1821.85168105,0.00027397,2]
[311087720,1704901840924,-200.0,0.00027397,2]
[311087721,1704901840934,-245.30792768,0.00027397,2]
[311087722,1704901840944,-500.0,0.00027397,2]
[311087723,1704901840953,-500.0,0.00027397,2]
[311087724,1704901840964,-500.0,0.00027397,2]
[311087725,1704901840973,-511.12548671,0.00027397,2]
[311087726,1704901840984,-500.0,0.00027397,2]
[311087727,1704901840993,-154.29785145,0.00027397,2]
[311087728,1704901841003,-500.0,0.00027397,2]
[311087729,1704901841012,-2955.91,0.00027397,2]
[311087730,1704901841022,-500.0,0.00027397,2]
[311087731,1704901841031,-573.80067345,0.00027397,2]
[311087732,1704901841042,-500.0,0.00027397,2]
[311087733,1704901841053,-500.0,0.00027397,2]
[311087734,1704901841063,-500.0,0.00027397,2]
[311087735,1704901841074,-862.87,0.00027397,2]
[311087736,1704901841083,-500.0,0.00027397,2]
[311087737,1704901841093,-317.83820168,0.00027397,2]
[311087738,1704901841103,-503.36388571,0.00027397,2]
[311087739,1704901841112,-500.0,0.00027397,2]
[311087740,1704901841122,-500.0,0.00027397,2]
[311087741,1704901841132,-500.0,0.00027397,2]
[311087743,1704901841142,-287.98515762,0.00027397,2]
[311087744,1704901841151,-854.91,0.00027397,2]
[311087746,1704901841161,-500.0,0.00027397,2]
[311087747,1704901841170,-1166.06,0.00027397,2]
[311087748,1704901841180,-500.0,0.00027397,2]
[311087749,1704901841190,-500.0,0.00027397,2]
[311087750,1704901841200,-500.0,0.00027397,2]
[311087751,1704901841209,-583.02535419,0.00027397,2]
[311087752,1704901841219,-500.0,0.00027397,2]
[311087753,1704901841229,-1328.89,0.00027397,2]
[311087754,1704901841239,-500.0,0.00027397,2]
[311087755,1704901841248,-500.0,0.00027562,2]
[311087756,1704901841259,-500.0,0.00027563,2]
[311087757,1704901841268,-500.0,0.00027563,2]
[311087758,1704901841277,-500.0,0.00027563,2]
[311087759,1704901841287,-163.18368332,0.00027569,2]
[311087760,1704901841296,-7940.29516703,0.00027606,2]
[311087761,1704901841305,-3000.0,0.00027606,2]
[311087762,1704901841315,-2112.91389925,0.00027606,2]
[311087763,1704901841325,-500.0,0.00027607,2]
[311087764,1704901841334,-507.63,0.00027607,2]
[311087765,1704901841343,-500.0,0.00027607,2]
[311087766,1704901841353,-500.0,0.00027607,2]
[311087767,1704901841363,-500.0,0.00027607,2]
[311087768,1704901841372,-500.0,0.00027607,2]
[311087769,1704901841381,-16951.25610445,0.00027608,3]
[311087770,1704901841391,-4017.86990804,0.00027608,3]
[311087771,1704901841401,-23518.06454179,0.00027608,3]
[311087772,1704901841410,-2874.03518134,0.00027608,3]
[311087773,1704901841420,-500.0,0.0002767,2]
[311087774,1704901841430,-500.0,0.0002767,2]
[311087775,1704901841440,-302.133268,0.0002767,2]
[311087776,1704901841449,-162.28174723,0.00027671,2]
[311087777,1704901841459,-500.0,0.00027671,2]
[311087778,1704901841468,-500.0,0.00027671,2]
[311087779,1704901841477,-500.0,0.00027671,2]
[311087780,1704901841488,-500.0,0.00027671,2]
[311087781,1704901841498,-500.0,0.00027671,2]
[311087782,1704901841507,-500.0,0.00027671,2]
[311087783,1704901841517,-500.0,0.00027671,2]
[311087784,1704901841526,-510.60463476,0.00027671,2]
[311087785,1704901841535,-500.0,0.00027671,2]
[311087786,1704901841545,-500.0,0.00027671,2]
[311087787,1704901841554,-500.0,0.00027671,2]
[311087788,1704901841563,-500.0,0.00027671,2]
[311087789,1704901841572,-500.0,0.00027671,2]
[311087790,1704901841582,-185.62363994,0.00027671,2]
[311087791,1704901841592,-500.0,0.00027671,2]
[311087792,1704901841601,-500.0,0.00027671,2]
[311087793,1704901841611,-500.0,0.00027671,2]
[311087794,1704901841620,-500.0,0.00027671,2]
[311087795,1704901841630,-500.0,0.00027671,2]
[311087796,1704901841640,-500.0,0.00027671,2]
[311087797,1704901841650,-500.0,0.00027671,2]
[311087799,1704901841659,-448.30218637,0.00027671,2]
[311087801,1704901841668,-500.0,0.00027671,2]
[311087803,1704901841677,-500.0,0.00027671,2]
[311087804,1704901841686,-446.21810783,0.00027671,2]